[Event "January 9 Late 2024"]
[Site "https://www.chess.com"]
[Date "2024.01.09"]
[Round "3"]
[White "Mendez Fortes, Eduardo Jesus"]
[Black "Erigaisi Arjun"]
[Result "1/2-1/2"]
[Board "68"]
[TimeControl "180+1"]
[WhiteFideId "3502376"]
[BlackFideId "35009192"]
[WhiteElo "2546"]
[BlackElo "3021"]
[WhiteTeam "CUB"]
[BlackTeam "IND"]
[WhiteClock "0:00:13"]
[BlackClock "0:02:10"]

1. e4 {[%clk 0:03:00]}  d6 {[%clk 0:02:59]} 2. d4 {[%clk 0:03:00]}  g6 {[%clk 0:03:00]} 3. Nc3 {[%clk 0:03:01]}  Bg7 {[%clk 0:03:01]} 4. f4 {[%clk 0:03:01]}  a6 {[%clk 0:03:01]} 5. Nf3 {[%clk 0:03:01]}  b5 {[%clk 0:03:02]} 6. Bd3 {[%clk 0:03:01]}  Nd7 {[%clk 0:03:02]} 7. Qe2 {[%clk 0:02:58]}  Nb6 {[%clk 0:03:02]} 8. e5 {[%clk 0:02:57]}  e6 {[%clk 0:02:53]} 9. Ne4 {[%clk 0:02:55]}  Bb7 {[%clk 0:02:49]} 10. Be3 {[%clk 0:02:53]}  Bxe4 {[%clk 0:02:46]} 11. Bxe4 {[%clk 0:02:53]}  d5 {[%clk 0:02:47]} 12. Bd3 {[%clk 0:02:52]}  Nc4 {[%clk 0:02:48]} 13. Bc1 {[%clk 0:02:39]}  Ne7 {[%clk 0:02:47]} 14. h4 {[%clk 0:02:24]}  h5 {[%clk 0:02:47]} 15. b3 {[%clk 0:02:11]}  Nb6 {[%clk 0:02:46]} 16. Ng5 {[%clk 0:02:09]}  Bf8 {[%clk 0:02:45]} 17. g4 {[%clk 0:02:05]}  hxg4 {[%clk 0:02:45]} 18. Qxg4 {[%clk 0:02:06]}  Nf5 {[%clk 0:02:41]} 19. Nxe6 {[%clk 0:01:17]}  fxe6 {[%clk 0:02:42]} 20. Qxg6+ {[%clk 0:01:16]}  Kd7 {[%clk 0:02:42]} 21. Bxf5 {[%clk 0:01:06]}  exf5 {[%clk 0:02:43]} 22. Qxf5+ {[%clk 0:01:05]}  Kc6 {[%clk 0:02:44]} 23. h5 {[%clk 0:01:03]}  Bb4+ {[%clk 0:02:39]} 24. Ke2 {[%clk 0:00:59]}  Bc3 {[%clk 0:02:34]} 25. Rb1 {[%clk 0:00:59]}  Bxd4 {[%clk 0:02:34]} 26. c3 {[%clk 0:00:54]}  Bxc3 {[%clk 0:02:33]} 27. Be3 {[%clk 0:00:47]}  d4 {[%clk 0:02:33]} 28. Rbc1 {[%clk 0:00:45]}  Qd5 {[%clk 0:02:28]} 29. Bxd4 {[%clk 0:00:40]}  Qxd4 {[%clk 0:02:29]} 30. Rhd1 {[%clk 0:00:40]}  Qb4 {[%clk 0:02:23]} 31. Qd3 {[%clk 0:00:18]}  Kb7 {[%clk 0:02:12]} 32. Rxc3 {[%clk 0:00:18]}  Qxf4 {[%clk 0:02:08]} 33. Rxc7+ {[%clk 0:00:16]}  Kxc7 {[%clk 0:02:08]} 34. Qd6+ {[%clk 0:00:16]}  Kb7 {[%clk 0:02:09]} 35. Qe7+ {[%clk 0:00:15]}  Kc8 {[%clk 0:02:09]} 36. Qc5+ {[%clk 0:00:14]}  Kb7 {[%clk 0:02:10]} 37. Qe7+ {[%clk 0:00:15]}  Kb8 {[%clk 0:02:09]} 38. Qd6+ {[%clk 0:00:13]}  Kb7 {[%clk 0:02:10]} 39. Qe7+ {[%clk 0:00:13]} 1/2-1/2

[Event "January 9 Late 2024"]
[Site "https://www.chess.com"]
[Date "2024.01.09"]
[Round "3"]
[White "Livaic, Leon"]
[Black "Bruedigam, Martin"]
[Result "1-0"]
[Board "71"]
[TimeControl "180+1"]
[WhiteFideId "14531534"]
[BlackFideId "24608033"]
[WhiteElo "2888"]
[BlackElo "2541"]
[WhiteTeam "CRO"]
[BlackTeam "GER"]
[WhiteClock "0:00:03"]
[BlackClock "0:00:08"]

1. e4 {[%clk 0:03:00]}  c5 {[%clk 0:02:45]} 2. Nc3 {[%clk 0:02:59]}  e6 {[%clk 0:02:39]} 3. f4 {[%clk 0:02:59]}  a6 {[%clk 0:02:38]} 4. Nf3 {[%clk 0:02:57]}  b5 {[%clk 0:02:37]} 5. d3 {[%clk 0:02:47]}  Bb7 {[%clk 0:02:36]} 6. g3 {[%clk 0:02:48]}  Nc6 {[%clk 0:02:29]} 7. Bg2 {[%clk 0:02:48]}  Nge7 {[%clk 0:02:25]} 8. O-O {[%clk 0:02:46]}  d5 {[%clk 0:02:08]} 9. f5 {[%clk 0:02:40]}  exf5 {[%clk 0:01:58]} 10. Nxd5 {[%clk 0:02:06]}  Nxd5 {[%clk 0:01:56]} 11. exd5 {[%clk 0:02:07]}  Qxd5 {[%clk 0:01:53]} 12. Bg5 {[%clk 0:01:40]}  f6 {[%clk 0:01:48]} 13. Bf4 {[%clk 0:01:24]}  Be7 {[%clk 0:01:41]} 14. Kh1 {[%clk 0:01:19]}  Qd7 {[%clk 0:01:39]} 15. c4 {[%clk 0:01:11]}  O-O {[%clk 0:01:35]} 16. cxb5 {[%clk 0:01:11]}  axb5 {[%clk 0:01:35]} 17. Qb3+ {[%clk 0:01:11]}  Kh8 {[%clk 0:01:36]} 18. Qxb5 {[%clk 0:01:11]}  Ba6 {[%clk 0:01:34]} 19. Qb3 {[%clk 0:01:07]}  Qxd3 {[%clk 0:01:29]} 20. Qe6 {[%clk 0:01:03]}  Rac8 {[%clk 0:01:24]} 21. Nh4 {[%clk 0:00:55]}  Bc4 {[%clk 0:00:59]} 22. Qe1 {[%clk 0:00:46]}  Rfe8 {[%clk 0:00:51]} 23. Rd1 {[%clk 0:00:37]}  Qe2 {[%clk 0:00:36]} 24. Qc3 {[%clk 0:00:35]}  Ba6 {[%clk 0:00:26]} 25. Nxf5 {[%clk 0:00:31]}  Nd4 {[%clk 0:00:14]} 26. Rfe1 {[%clk 0:00:18]}  Qh5 {[%clk 0:00:15]} 27. Nxe7 {[%clk 0:00:08]}  Rxe7 {[%clk 0:00:15]} 28. Rxe7 {[%clk 0:00:07]}  Qxd1+ {[%clk 0:00:15]} 29. Re1 {[%clk 0:00:08]}  Qh5 {[%clk 0:00:14]} 30. Qa5 {[%clk 0:00:04]}  Be2 {[%clk 0:00:13]} 31. Qb6 {[%clk 0:00:02]}  Bf3 {[%clk 0:00:12]} 32. Qe6 {[%clk 0:00:03]}  Bxg2+ {[%clk 0:00:12]} 33. Kg1 {[%clk 0:00:03]}  Nf3+ {[%clk 0:00:11]} 34. Kf2 {[%clk 0:00:03]}  Nxe1 {[%clk 0:00:08]} 35. Qxc8+ {[%clk 0:00:03]} 1-0

[Event "January 9 Late 2024"]
[Site "https://www.chess.com"]
[Date "2024.01.09"]
[Round "3"]
[White "Bryakin, Mikhail"]
[Black "Kopczynski, Michal"]
[Result "1-0"]
[Board "73"]
[TimeControl "180+1"]
[WhiteFideId "4165314"]
[BlackFideId "1124200"]
[WhiteElo "2831"]
[BlackElo "2533"]
[WhiteTeam "SRB"]
[BlackTeam "POL"]
[WhiteClock "0:00:18"]
[BlackClock "0:00:00"]

1. e4 {[%clk 0:03:00]}  b6 {[%clk 0:02:58]} 2. d4 {[%clk 0:02:58]}  Bb7 {[%clk 0:02:58]} 3. Bd3 {[%clk 0:02:59]}  e6 {[%clk 0:02:58]} 4. Qe2 {[%clk 0:02:56]}  Nf6 {[%clk 0:02:59]} 5. c3 {[%clk 0:02:50]}  d5 {[%clk 0:02:59]} 6. e5 {[%clk 0:02:49]}  Nfd7 {[%clk 0:02:59]} 7. f4 {[%clk 0:02:47]}  g6 {[%clk 0:02:58]} 8. Nf3 {[%clk 0:02:46]}  c5 {[%clk 0:02:58]} 9. Be3 {[%clk 0:02:45]}  Nc6 {[%clk 0:02:58]} 10. Nbd2 {[%clk 0:02:41]}  Qc7 {[%clk 0:02:58]} 11. O-O {[%clk 0:02:40]}  O-O-O {[%clk 0:02:57]} 12. Rfc1 {[%clk 0:02:28]}  c4 {[%clk 0:02:57]} 13. Bc2 {[%clk 0:02:28]}  h6 {[%clk 0:02:54]} 14. b3 {[%clk 0:02:28]}  Na5 {[%clk 0:02:53]} 15. b4 {[%clk 0:02:20]}  Nc6 {[%clk 0:02:52]} 16. a4 {[%clk 0:02:21]}  Be7 {[%clk 0:02:48]} 17. g4 {[%clk 0:02:21]}  Rdg8 {[%clk 0:02:42]} 18. Kf2 {[%clk 0:02:19]}  f6 {[%clk 0:02:35]} 19. h3 {[%clk 0:02:16]}  fxe5 {[%clk 0:02:28]} 20. fxe5 {[%clk 0:02:12]}  g5 {[%clk 0:02:21]} 21. b5 {[%clk 0:02:10]}  Na5 {[%clk 0:02:19]} 22. Rf1 {[%clk 0:02:05]}  h5 {[%clk 0:02:18]} 23. Kg2 {[%clk 0:02:05]}  Nf8 {[%clk 0:02:06]} 24. gxh5 {[%clk 0:01:45]}  Rxh5 {[%clk 0:02:05]} 25. Nh2 {[%clk 0:01:44]}  Rhh8 {[%clk 0:01:53]} 26. Ng4 {[%clk 0:01:44]}  Ng6 {[%clk 0:01:51]} 27. Rf7 {[%clk 0:01:37]}  Nh4+ {[%clk 0:01:40]} 28. Kg3 {[%clk 0:01:35]}  Qd8 {[%clk 0:01:27]} 29. Raf1 {[%clk 0:01:30]}  Kb8 {[%clk 0:01:26]} 30. Qf2 {[%clk 0:01:19]}  Bc8 {[%clk 0:01:24]} 31. Nf3 {[%clk 0:01:05]}  Nf5+ {[%clk 0:01:20]} 32. Kg2 {[%clk 0:01:04]}  Qe8 {[%clk 0:01:16]} 33. Rxe7 {[%clk 0:01:00]}  Qxe7 {[%clk 0:01:16]} 34. Bc1 {[%clk 0:00:55]}  Bd7 {[%clk 0:01:05]} 35. Nf6 {[%clk 0:00:53]}  Rg6 {[%clk 0:00:42]} 36. Bxf5 {[%clk 0:00:49]}  exf5 {[%clk 0:00:39]} 37. Bxg5 {[%clk 0:00:49]}  Be6 {[%clk 0:00:20]} 38. h4 {[%clk 0:00:45]}  Qa3 {[%clk 0:00:17]} 39. Qc2 {[%clk 0:00:42]}  Nb3 {[%clk 0:00:15]} 40. h5 {[%clk 0:00:39]}  Rg7 {[%clk 0:00:15]} 41. Kf2 {[%clk 0:00:36]}  Qxa4 {[%clk 0:00:15]} 42. h6 {[%clk 0:00:36]}  Rg6 {[%clk 0:00:15]} 43. h7 {[%clk 0:00:30]}  Qxb5 {[%clk 0:00:13]} 44. Rg1 {[%clk 0:00:30]}  a5 {[%clk 0:00:08]} 45. Nh4 {[%clk 0:00:30]}  Rxg5 {[%clk 0:00:04]} 46. Rxg5 {[%clk 0:00:30]}  a4 {[%clk 0:00:05]} 47. Nxf5 {[%clk 0:00:23]}  Rxh7 {[%clk 0:00:04]} 48. Nxh7 {[%clk 0:00:23]}  a3 {[%clk 0:00:04]} 49. Nd6 {[%clk 0:00:23]}  Qd7 {[%clk 0:00:03]} 50. Nf6 {[%clk 0:00:23]}  Qf7 {[%clk 0:00:02]} 51. Nxf7 {[%clk 0:00:22]}  Bxf7 {[%clk 0:00:00]} 52. Rg7 {[%clk 0:00:18]} 1-0

[Event "January 9 Late 2024"]
[Site "https://www.chess.com"]
[Date "2024.01.09"]
[Round "3"]
[White "Khater, Sherif"]
[Black "Rustemov, Alexander"]
[Result "0-1"]
[Board "75"]
[TimeControl "180+1"]
[WhiteFideId "2034280"]
[BlackFideId "4119002"]
[WhiteElo "2529"]
[BlackElo "2815"]
[WhiteTeam "USA"]
[BlackTeam "RUS"]
[WhiteClock "0:01:06"]
[BlackClock "0:02:09"]

1. b4 {[%clk 0:03:00]}  e5 {[%clk 0:02:58]} 2. Bb2 {[%clk 0:02:59]}  Bxb4 {[%clk 0:02:58]} 3. Bxe5 {[%clk 0:02:59]}  Nf6 {[%clk 0:02:59]} 4. e3 {[%clk 0:02:56]}  d5 {[%clk 0:02:56]} 5. Nf3 {[%clk 0:02:54]}  O-O {[%clk 0:02:56]} 6. Be2 {[%clk 0:02:37]}  c5 {[%clk 0:02:55]} 7. Bb2 {[%clk 0:02:35]}  Nc6 {[%clk 0:02:55]} 8. O-O {[%clk 0:02:35]}  d4 {[%clk 0:02:52]} 9. exd4 {[%clk 0:02:33]}  cxd4 {[%clk 0:02:52]} 10. h3 {[%clk 0:02:28]}  Bf5 {[%clk 0:02:43]} 11. Re1 {[%clk 0:02:17]}  Qd7 {[%clk 0:02:38]} 12. Bf1 {[%clk 0:02:09]}  Rfe8 {[%clk 0:02:34]} 13. Na3 {[%clk 0:02:05]}  Rxe1 {[%clk 0:02:29]} 14. Nxe1 {[%clk 0:02:02]}  Re8 {[%clk 0:02:24]} 15. Nd3 {[%clk 0:01:33]}  Bd6 {[%clk 0:02:19]} 16. Nc4 {[%clk 0:01:31]}  Bc7 {[%clk 0:02:17]} 17. a3 {[%clk 0:01:06]}  b5 {[%clk 0:02:09]} 0-1

[Event "January 9 Late 2024"]
[Site "https://www.chess.com"]
[Date "2024.01.10"]
[Round "3"]
[White "Stopa, Jacek"]
[Black "Zarnicki, Pablo"]
[Result "0-1"]
[Board "76"]
[TimeControl "180+1"]
[WhiteFideId "1119591"]
[BlackFideId "100137"]
[WhiteElo "2796"]
[BlackElo "2528"]
[WhiteTeam "POL"]
[BlackTeam "ARG"]
[WhiteClock "0:01:00"]
[BlackClock "0:00:12"]

1. d4 {[%clk 0:02:53]}  Nf6 {[%clk 0:02:59]} 2. c4 {[%clk 0:02:53]}  g6 {[%clk 0:02:59]} 3. f3 {[%clk 0:02:54]}  Bg7 {[%clk 0:02:59]} 4. e4 {[%clk 0:02:54]}  d6 {[%clk 0:02:59]} 5. Ne2 {[%clk 0:02:55]}  O-O {[%clk 0:03:00]} 6. Nbc3 {[%clk 0:02:55]}  c5 {[%clk 0:03:00]} 7. d5 {[%clk 0:02:55]}  e6 {[%clk 0:03:00]} 8. Ng3 {[%clk 0:02:53]}  exd5 {[%clk 0:03:00]} 9. cxd5 {[%clk 0:02:54]}  a6 {[%clk 0:03:00]} 10. a4 {[%clk 0:02:54]}  h5 {[%clk 0:03:00]} 11. Be2 {[%clk 0:02:53]}  h4 {[%clk 0:03:00]} 12. Nf1 {[%clk 0:02:54]}  Nbd7 {[%clk 0:03:00]} 13. Bg5 {[%clk 0:02:54]}  h3 {[%clk 0:02:58]} 14. g4 {[%clk 0:02:54]}  Qc7 {[%clk 0:02:56]} 15. Ne3 {[%clk 0:02:42]}  Rb8 {[%clk 0:02:51]} 16. a5 {[%clk 0:02:40]}  b5 {[%clk 0:02:46]} 17. axb6 {[%clk 0:02:40]}  Rxb6 {[%clk 0:02:46]} 18. Ra2 {[%clk 0:02:41]}  Nh7 {[%clk 0:02:43]} 19. Bf4 {[%clk 0:02:38]}  Rxb2 {[%clk 0:02:38]} 20. Rxb2 {[%clk 0:02:36]}  Bxc3+ {[%clk 0:02:39]} 21. Rd2 {[%clk 0:02:36]}  Bxd2+ {[%clk 0:02:34]} 22. Qxd2 {[%clk 0:02:36]}  Ne5 {[%clk 0:02:31]} 23. O-O {[%clk 0:02:35]}  Bb7 {[%clk 0:02:03]} 24. Rc1 {[%clk 0:02:28]}  Qe7 {[%clk 0:01:57]} 25. Qc3 {[%clk 0:02:24]}  Rc8 {[%clk 0:01:49]} 26. Bxe5 {[%clk 0:02:20]}  dxe5 {[%clk 0:01:47]} 27. Nc4 {[%clk 0:02:20]}  Re8 {[%clk 0:01:31]} 28. Rb1 {[%clk 0:02:19]}  Ng5 {[%clk 0:01:24]} 29. Na5 {[%clk 0:02:08]}  Bc8 {[%clk 0:01:20]} 30. Rb6 {[%clk 0:01:59]}  Kg7 {[%clk 0:01:06]} 31. Rc6 {[%clk 0:01:54]}  Bd7 {[%clk 0:01:02]} 32. Rxc5 {[%clk 0:01:51]}  Qf6 {[%clk 0:01:02]} 33. Qe3 {[%clk 0:01:47]}  Bb5 {[%clk 0:01:01]} 34. Nc4 {[%clk 0:01:41]}  Bxc4 {[%clk 0:01:01]} 35. Rxc4 {[%clk 0:01:41]}  Rb8 {[%clk 0:01:01]} 36. Kf2 {[%clk 0:01:34]}  Rb2 {[%clk 0:00:59]} 37. Kg3 {[%clk 0:01:34]}  a5 {[%clk 0:00:56]} 38. Rc6 {[%clk 0:01:32]}  Qd8 {[%clk 0:00:35]} 39. Bf1 {[%clk 0:01:32]}  a4 {[%clk 0:00:33]} 40. Qc3 {[%clk 0:01:31]}  Nxe4+ {[%clk 0:00:26]} 41. fxe4 {[%clk 0:01:30]}  Rb3 {[%clk 0:00:26]} 42. Kxh3 {[%clk 0:01:17]}  Rxc3+ {[%clk 0:00:23]} 43. Rxc3 {[%clk 0:01:17]}  Qa5 {[%clk 0:00:23]} 44. Rd3 {[%clk 0:01:10]}  Qe1 {[%clk 0:00:18]} 45. Kg2 {[%clk 0:01:09]}  Qxe4+ {[%clk 0:00:15]} 46. Kg1 {[%clk 0:01:09]}  Qxg4+ {[%clk 0:00:15]} 47. Kf2 {[%clk 0:01:09]}  Qf4+ {[%clk 0:00:15]} 48. Kg1 {[%clk 0:01:09]}  e4 {[%clk 0:00:15]} 49. Rg3 {[%clk 0:01:06]}  e3 {[%clk 0:00:12]} 50. Bd3 {[%clk 0:01:02]}  Qf2+ {[%clk 0:00:11]} 51. Kh1 {[%clk 0:01:02]}  e2 {[%clk 0:00:11]} 52. Bxe2 {[%clk 0:01:02]}  Qe1+ {[%clk 0:00:12]} 53. Rg1 {[%clk 0:01:01]}  Qxe2 {[%clk 0:00:13]} 54. d6 {[%clk 0:01:02]}  Qe4+ {[%clk 0:00:12]} 55. Rg2 {[%clk 0:01:00]}  Qd5 {[%clk 0:00:12]} 0-1

[Event "January 9 Late 2024"]
[Site "https://www.chess.com"]
[Date "2024.01.09"]
[Round "3"]
[White "Rangel, Daniel"]
[Black "Khamrakulov, Djurabek"]
[Result "1-0"]
[Board "78"]
[TimeControl "180+1"]
[WhiteFideId "2124475"]
[BlackFideId "14201143"]
[WhiteElo "2524"]
[BlackElo "2771"]
[WhiteTeam "BRA"]
[BlackTeam "UZB"]
[WhiteClock "0:00:49"]
[BlackClock "0:01:42"]

1. c4 {[%clk 0:03:00]}  e5 {[%clk 0:02:59]} 2. g3 {[%clk 0:02:59]}  c6 {[%clk 0:02:59]} 3. Bg2 {[%clk 0:03:00]}  d5 {[%clk 0:02:59]} 4. cxd5 {[%clk 0:03:01]}  cxd5 {[%clk 0:02:59]} 5. d4 {[%clk 0:03:00]}  e4 {[%clk 0:02:59]} 6. Nc3 {[%clk 0:02:59]}  Nc6 {[%clk 0:02:59]} 7. Nh3 {[%clk 0:02:56]}  h6 {[%clk 0:02:59]} 8. O-O {[%clk 0:02:54]}  Bb4 {[%clk 0:02:58]} 9. f3 {[%clk 0:02:54]}  Nf6 {[%clk 0:02:56]} 10. Nf2 {[%clk 0:02:44]}  exf3 {[%clk 0:02:53]} 11. exf3 {[%clk 0:02:43]}  O-O {[%clk 0:02:51]} 12. a3 {[%clk 0:02:41]}  Bxc3 {[%clk 0:02:50]} 13. bxc3 {[%clk 0:02:40]}  Na5 {[%clk 0:02:49]} 14. Qd3 {[%clk 0:02:29]}  Bd7 {[%clk 0:02:41]} 15. g4 {[%clk 0:02:19]}  Rc8 {[%clk 0:02:36]} 16. g5 {[%clk 0:02:15]}  hxg5 {[%clk 0:02:35]} 17. Bxg5 {[%clk 0:02:16]}  a6 {[%clk 0:02:31]} 18. Ng4 {[%clk 0:02:11]}  Re8 {[%clk 0:02:17]} 19. Bxf6 {[%clk 0:01:43]}  gxf6 {[%clk 0:02:17]} 20. Nh6+ {[%clk 0:01:43]}  Kg7 {[%clk 0:02:15]} 21. Nf5+ {[%clk 0:01:36]}  Kf8 {[%clk 0:02:10]} 22. Nd6 {[%clk 0:01:14]}  Bb5 {[%clk 0:02:10]} 23. Nxb5 {[%clk 0:01:13]}  axb5 {[%clk 0:02:10]} 24. Qh7 {[%clk 0:01:13]}  Re3 {[%clk 0:02:06]} 25. Rae1 {[%clk 0:01:09]}  Re6 {[%clk 0:01:47]} 26. Bh3 {[%clk 0:01:07]}  f5 {[%clk 0:01:45]} 27. Bxf5 {[%clk 0:00:56]}  Qg5+ {[%clk 0:01:44]} 28. Kh1 {[%clk 0:00:56]}  Rcc6 {[%clk 0:01:43]} 29. Bxe6 {[%clk 0:00:55]}  Rxe6 {[%clk 0:01:43]} 30. Rxe6 {[%clk 0:00:50]}  fxe6 {[%clk 0:01:42]} 31. Rg1 {[%clk 0:00:49]} 1-0

[Event "January 9 Late 2024"]
[Site "https://www.chess.com"]
[Date "2024.01.09"]
[Round "3"]
[White "Mazi, Leon"]
[Black "Chirilov, James A"]
[Result "0-1"]
[Board "79"]
[TimeControl "180+1"]
[WhiteFideId "14600315"]
[BlackFideId "30976677"]
[WhiteElo "2524"]
[BlackElo "2742"]
[WhiteTeam "SLO"]
[BlackTeam "USA"]
[WhiteClock "0:00:00"]
[BlackClock "0:00:05"]

1. e4 {[%clk 0:03:00]}  c5 {[%clk 0:02:57]} 2. Nf3 {[%clk 0:03:00]}  d6 {[%clk 0:02:53]} 3. d4 {[%clk 0:03:00]}  cxd4 {[%clk 0:02:54]} 4. Qxd4 {[%clk 0:03:01]}  a6 {[%clk 0:02:45]} 5. c4 {[%clk 0:02:59]}  Nc6 {[%clk 0:02:45]} 6. Qd3 {[%clk 0:02:58]}  Nf6 {[%clk 0:02:45]} 7. Nc3 {[%clk 0:02:57]}  g6 {[%clk 0:02:45]} 8. Be2 {[%clk 0:02:55]}  Bg7 {[%clk 0:02:46]} 9. O-O {[%clk 0:02:54]}  O-O {[%clk 0:02:46]} 10. Rb1 {[%clk 0:02:52]}  Be6 {[%clk 0:02:45]} 11. b3 {[%clk 0:02:52]}  Rc8 {[%clk 0:02:44]} 12. Bb2 {[%clk 0:02:41]}  Nd7 {[%clk 0:02:27]} 13. Ng5 {[%clk 0:02:20]}  Nc5 {[%clk 0:02:19]} 14. Qg3 {[%clk 0:02:20]}  Nd4 {[%clk 0:02:11]} 15. Qh4 {[%clk 0:02:06]}  h6 {[%clk 0:02:05]} 16. Nxe6 {[%clk 0:02:04]}  Ncxe6 {[%clk 0:01:59]} 17. Bd3 {[%clk 0:01:54]}  b5 {[%clk 0:01:41]} 18. Nd5 {[%clk 0:01:52]}  g5 {[%clk 0:01:38]} 19. Qh5 {[%clk 0:01:41]}  Nc5 {[%clk 0:01:33]} 20. Rfd1 {[%clk 0:01:30]}  e6 {[%clk 0:01:31]} 21. Ne3 {[%clk 0:01:28]}  Qf6 {[%clk 0:00:29]} 22. e5 {[%clk 0:01:17]}  Qxe5 {[%clk 0:00:09]} 23. Ng4 {[%clk 0:01:16]}  Qf4 {[%clk 0:00:08]} 24. Bxd4 {[%clk 0:01:10]}  Bxd4 {[%clk 0:00:05]} 25. Nxh6+ {[%clk 0:01:09]}  Kg7 {[%clk 0:00:04]} 26. Be2 {[%clk 0:00:56]}  Rh8 {[%clk 0:00:02]} 27. Rxd4 {[%clk 0:00:55]}  Qxd4 {[%clk 0:00:02]} 28. Qxg5+ {[%clk 0:00:54]}  Kf8 {[%clk 0:00:02]} 29. cxb5 {[%clk 0:00:45]}  axb5 {[%clk 0:00:03]} 30. Bxb5 {[%clk 0:00:44]}  Qe5 {[%clk 0:00:03]} 31. Qxe5 {[%clk 0:00:39]}  dxe5 {[%clk 0:00:04]} 32. Ng4 {[%clk 0:00:38]}  e4 {[%clk 0:00:04]} 33. Bc4 {[%clk 0:00:35]}  Ke7 {[%clk 0:00:04]} 34. h3 {[%clk 0:00:35]}  f5 {[%clk 0:00:05]} 35. Ne3 {[%clk 0:00:35]}  Kf6 {[%clk 0:00:05]} 36. a4 {[%clk 0:00:29]}  Rb8 {[%clk 0:00:05]} 37. a5 {[%clk 0:00:28]}  Rhc8 {[%clk 0:00:05]} 38. a6 {[%clk 0:00:26]}  Ra8 {[%clk 0:00:03]} 39. Ra1 {[%clk 0:00:25]}  Rc6 {[%clk 0:00:03]} 40. b4 {[%clk 0:00:23]}  Nd7 {[%clk 0:00:01]} 41. b5 {[%clk 0:00:23]}  Rc7 {[%clk 0:00:02]} 42. Bf1 {[%clk 0:00:19]}  Nb6 {[%clk 0:00:02]} 43. g3 {[%clk 0:00:17]}  e5 {[%clk 0:00:02]} 44. h4 {[%clk 0:00:17]}  f4 {[%clk 0:00:03]} 45. Ng4+ {[%clk 0:00:17]}  Kf5 {[%clk 0:00:03]} 46. Bh3 {[%clk 0:00:16]}  fxg3 {[%clk 0:00:03]} 47. fxg3 {[%clk 0:00:16]}  Rca7 {[%clk 0:00:04]} 48. Ne3+ {[%clk 0:00:15]}  Kg6 {[%clk 0:00:04]} 49. Rc1 {[%clk 0:00:14]}  Kg7 {[%clk 0:00:04]} 50. Rc6 {[%clk 0:00:14]}  Na4 {[%clk 0:00:03]} 51. Bf1 {[%clk 0:00:13]}  Rb8 {[%clk 0:00:03]} 52. Nd5 {[%clk 0:00:11]}  Rd7 {[%clk 0:00:03]} 53. Nb4 {[%clk 0:00:09]}  Rd1 {[%clk 0:00:03]} 54. a7 {[%clk 0:00:09]}  Ra8 {[%clk 0:00:03]} 55. b6 {[%clk 0:00:09]}  Nxb6 {[%clk 0:00:02]} 56. Rxb6 {[%clk 0:00:09]}  Rb1 {[%clk 0:00:03]} 57. Nd5 {[%clk 0:00:08]}  Rxb6 {[%clk 0:00:03]} 58. Nxb6 {[%clk 0:00:08]}  Rxa7 {[%clk 0:00:04]} 59. Nd5 {[%clk 0:00:08]}  Kg6 {[%clk 0:00:04]} 60. Ne3 {[%clk 0:00:07]}  Ra2 {[%clk 0:00:04]} 61. Bg2 {[%clk 0:00:07]}  Kf6 {[%clk 0:00:04]} 62. Ng4+ {[%clk 0:00:06]}  Kf5 {[%clk 0:00:04]} 63. Ne3+ {[%clk 0:00:06]}  Ke6 {[%clk 0:00:04]} 64. Kf1 {[%clk 0:00:06]}  Ra3 {[%clk 0:00:04]} 65. Kf2 {[%clk 0:00:06]}  Ra2+ {[%clk 0:00:04]} 66. Kf1 {[%clk 0:00:06]}  Ra3 {[%clk 0:00:04]} 67. Ke2 {[%clk 0:00:06]}  Ra2+ {[%clk 0:00:04]} 68. Ke1 {[%clk 0:00:06]}  Kd6 {[%clk 0:00:04]} 69. h5 {[%clk 0:00:06]}  Ra3 {[%clk 0:00:04]} 70. Ke2 {[%clk 0:00:05]}  Ra2+ {[%clk 0:00:03]} 71. Ke1 {[%clk 0:00:06]}  Ke6 {[%clk 0:00:04]} 72. Bf1 {[%clk 0:00:05]}  Kf6 {[%clk 0:00:04]} 73. Be2 {[%clk 0:00:05]}  Kg5 {[%clk 0:00:04]} 74. Kf2 {[%clk 0:00:05]}  Ra3 {[%clk 0:00:04]} 75. Ng2 {[%clk 0:00:04]}  Ra2 {[%clk 0:00:05]} 76. Nh4 {[%clk 0:00:04]}  Ra3 {[%clk 0:00:05]} 77. Ng6 {[%clk 0:00:03]}  e3+ {[%clk 0:00:05]} 78. Kg2 {[%clk 0:00:02]}  e4 {[%clk 0:00:06]} 79. Nf4 {[%clk 0:00:02]}  Ra2 {[%clk 0:00:06]} 80. Kh3 {[%clk 0:00:01]}  Ra1 {[%clk 0:00:06]} 81. Kg2 {[%clk 0:00:00]}  Re1 {[%clk 0:00:05]} 0-1

[Event "January 9 Late 2024"]
[Site "https://www.chess.com"]
[Date "2024.01.09"]
[Round "3"]
[White "Kosteniuk, Alexandra"]
[Black "Dubnevych, Maksym"]
[Result "0-1"]
[Board "82"]
[TimeControl "180+1"]
[WhiteFideId "4128125"]
[BlackFideId "14184001"]
[WhiteElo "2737"]
[BlackElo "2523"]
[WhiteTeam "SUI"]
[BlackTeam "UKR"]
[WhiteClock "0:00:12"]
[BlackClock "0:00:06"]

1. d4 {[%clk 0:03:00]}  Nf6 {[%clk 0:02:57]} 2. c4 {[%clk 0:03:01]}  e6 {[%clk 0:02:57]} 3. Nc3 {[%clk 0:03:00]}  Bb4 {[%clk 0:02:55]} 4. f3 {[%clk 0:03:00]}  c5 {[%clk 0:02:47]} 5. e4 {[%clk 0:02:57]}  cxd4 {[%clk 0:02:39]} 6. Qxd4 {[%clk 0:02:57]}  Nc6 {[%clk 0:02:39]} 7. Qd3 {[%clk 0:02:42]}  d5 {[%clk 0:02:40]} 8. cxd5 {[%clk 0:02:31]}  exd5 {[%clk 0:02:40]} 9. Bd2 {[%clk 0:02:21]}  O-O {[%clk 0:02:13]} 10. O-O-O {[%clk 0:02:14]}  Ne5 {[%clk 0:01:55]} 11. Qb5 {[%clk 0:01:59]}  Qb6 {[%clk 0:01:36]} 12. Qxb6 {[%clk 0:01:57]}  axb6 {[%clk 0:01:37]} 13. exd5 {[%clk 0:01:55]}  Bf5 {[%clk 0:01:32]} 14. Bf4 {[%clk 0:01:42]}  Ng6 {[%clk 0:01:27]} 15. Bc7 {[%clk 0:01:27]}  Bxc3 {[%clk 0:01:11]} 16. bxc3 {[%clk 0:01:28]}  Rxa2 {[%clk 0:01:11]} 17. g4 {[%clk 0:01:18]}  Nxg4 {[%clk 0:00:58]} 18. fxg4 {[%clk 0:01:18]}  Be4 {[%clk 0:00:59]} 19. Rd4 {[%clk 0:00:53]}  Bxh1 {[%clk 0:00:53]} 20. d6 {[%clk 0:00:44]}  Bc6 {[%clk 0:00:37]} 21. Kb1 {[%clk 0:00:42]}  Rfa8 {[%clk 0:00:31]} 22. Bc4 {[%clk 0:00:42]}  Ra1+ {[%clk 0:00:30]} 23. Kb2 {[%clk 0:00:43]}  Rxg1 {[%clk 0:00:30]} 24. d7 {[%clk 0:00:43]}  Rg2+ {[%clk 0:00:24]} 25. Kb3 {[%clk 0:00:38]}  Ba4+ {[%clk 0:00:11]} 26. Kb4 {[%clk 0:00:39]}  Bxd7 {[%clk 0:00:10]} 27. Rxd7 {[%clk 0:00:39]}  Rb2+ {[%clk 0:00:10]} 28. Bb3 {[%clk 0:00:39]}  Rf2 {[%clk 0:00:10]} 29. Bxb6 {[%clk 0:00:36]}  Ne5 {[%clk 0:00:10]} 30. Bxf2 {[%clk 0:00:25]}  Nxd7 {[%clk 0:00:09]} 31. Bd4 {[%clk 0:00:25]}  Nb8 {[%clk 0:00:09]} 32. Kb5 {[%clk 0:00:20]}  Nc6 {[%clk 0:00:10]} 33. Kb6 {[%clk 0:00:19]}  Nxd4 {[%clk 0:00:08]} 34. cxd4 {[%clk 0:00:20]}  Ra3 {[%clk 0:00:07]} 35. Bc4 {[%clk 0:00:21]}  Kf8 {[%clk 0:00:07]} 36. d5 {[%clk 0:00:16]}  Ke7 {[%clk 0:00:07]} 37. Kc5 {[%clk 0:00:16]}  Kd7 {[%clk 0:00:06]} 38. Bb5+ {[%clk 0:00:16]}  Kd8 {[%clk 0:00:06]} 39. Kb6 {[%clk 0:00:12]}  Rh3 {[%clk 0:00:06]} 0-1